bitfinex-derivatives/quotes_SOLF0:USTF0_20250529
["timestamp","ask_amount","ask_price","bid_price","bid_amount"]
[1748485135895,35.75539549,172.51,172.48,5.7958]
[1748485140279,29.96029549,172.51,172.47,0.04303486]
[1748485140486,0.04029549,172.51,172.47,0.04303486]
[1748485140882,0.04029549,172.51,172.48,5.7957]
[1748485141085,0.04029549,172.51,172.47,0.04303486]
[1748485141883,0.04029549,172.51,172.49,5.7956]
[1748485143379,0.04029549,172.51,172.5,5.7953]
[1748485145291,0.04029549,172.51,172.47,2.00903486]
[1748485146088,0.04029549,172.51,172.5,5.7953]
[1748485153393,0.04029549,172.51,172.49,5.7955]
[1748485153597,0.04029549,172.51,172.47,9.28550586]
[1748485153794,0.04029549,172.51,172.47,6.06153486]
[1748485154198,0.04029549,172.51,172.49,5.7955]
[1748485154599,0.04029549,172.51,172.47,6.06153486]
[1748485154802,0.04029549,172.51,172.5,5.7953]
[1748485156803,0.04029549,172.51,172.47,6.06153486]
[1748485158001,0.04029549,172.51,172.5,5.7953]
[1748485162408,9.549e-05,172.51,172.5,5.7953]
[1748485163009,9.549e-05,172.51,172.5,9.019271]
[1748485163607,9.549e-05,172.51,172.5,38.639271]
[1748485164514,28.913,172.88,172.5,38.643971]
[1748485164515,11.5739,172.75,172.5,38.643971]
[1748485164708,3.223971,172.62,172.54,3.223971]
[1748485165012,3.223971,172.58,172.5,29.62]
[1748485165211,5.7935,172.56,172.52,5.7944]
[1748485165513,32.843971,172.58,172.5,29.62]
[1748485165717,0.03657254,172.56,172.52,0.0439529]
[1748485166120,0.03657254,172.56,172.53,5.7941]
[1748485167013,0.03657254,172.56,172.54,5.7939]
[1748485167313,0.03657254,172.56,172.52,0.0439529]
[1748485167818,0.03657254,172.56,172.54,5.7937]
[1748485168010,0.03657254,172.56,172.52,0.0439529]
[1748485168715,0.03657254,172.56,172.55,5.7936]
[1748485173820,5.7917,172.61,172.58,5.7926]
[1748485174221,5.7914,172.62,172.58,5.7926]
[1748485174623,29.6,172.63,172.54,29.6]
[1748485174817,0.04370882,172.6,172.57,0.03864726]
[1748485175711,0.04370882,172.6,172.58,5.7926]
[1748485176117,0.04370882,172.6,172.57,0.03864726]
[1748485176322,0.04370882,172.6,172.59,5.7923]
[1748485177125,0.04370882,172.6,172.58,5.7926]
[1748485177525,0.04370882,172.6,172.57,0.03864726]
[1748485178928,0.04370882,172.6,172.58,5.7926]
[1748485181426,0.04370882,172.6,172.59,5.7923]
[1748485186721,0.04370882,172.6,172.57,0.03864726]
[1748485186722,29.64,172.66,172.62,5.7911]
[1748485187115,5.7903,172.65,172.62,5.7911]
[1748485187822,5.82757631,172.65,172.62,0.04349174]
[1748485188127,0.03727631,172.65,172.62,0.04349174]
[1748485189927,0.03727631,172.65,172.64,5.7906]
[1748485190233,0.03727631,172.65,172.62,0.04349174]
[1748485190530,0.03727631,172.65,172.63,5.7907]
[1748485190920,0.03727631,172.65,172.62,0.04349174]
[1748485190921,5.82757631,172.65,172.62,5.83469174]
[1748485191627,5.82757631,172.65,172.62,0.04349174]
[1748485192128,5.7907,172.64,172.62,0.04349174]
[1748485193928,5.82767631,172.65,172.62,0.04349174]
[1748485195934,0.03727631,172.65,172.62,0.04349174]
[1748485196126,5.03194017,172.64,172.52,29.64]
[1748485196328,5.7922,172.6,172.56,5.7931]
[1748485196834,8.91284017,172.64,172.52,29.64]
[1748485197028,5.7918,172.61,172.52,29.64]
[1748485197227,0.04298882,172.6,172.56,0.03990548]
[1748485197628,5.83498882,172.6,172.56,5.83310548]
[1748485197828,0.04298882,172.6,172.56,0.03990548]
[1748485198233,0.04298882,172.6,172.57,5.7927]
[1748485200745,0.04298882,172.6,172.58,5.7925]
[1748485201733,0.04298882,172.6,172.59,5.7923]
[1748485204038,0.04298882,172.6,172.58,5.7925]
[1748485204941,0.04298882,172.6,172.56,0.03990548]
[1748485204942,0.04298882,172.6,172.57,5.7928]
[1748485207742,0.04298882,172.6,172.58,5.7925]
[1748485208341,0.04298882,172.6,172.56,0.03990548]
[1748485209039,5.7923,172.59,172.56,0.03990548]
[1748485209842,5.7923,172.59,172.56,5.83310548]
[1748485211246,5.7923,172.59,172.56,0.03990548]
[1748485211641,5.83508882,172.6,172.56,0.03990548]
[1748485211838,0.04298882,172.6,172.56,0.03990548]
[1748485212440,0.04298882,172.6,172.59,5.7923]
[1748485231152,0.04298882,172.6,172.56,2.10510548]
[1748485231153,29.6,172.67,172.63,5.7907]
[1748485231357,29.6,172.67,172.56,6.0542]
[1748485231550,35.3899,172.67,172.56,6.0542]
[1748485232057,35.3899,172.67,172.64,5.7906]
[1748485232253,35.42757682,172.67,172.64,5.83145781]
[1748485235450,29.63767682,172.67,172.64,5.83145781]
[1748485236054,29.63767682,172.67,172.65,5.7903]
[1748485236448,29.63767682,172.67,172.64,0.04085781]
[1748485236747,35.42727682,172.67,172.64,5.83135781]
[1748485237554,35.42727682,172.67,172.64,0.04085781]
[1748485238959,29.63767682,172.67,172.64,0.04085781]
[1748485239656,29.63767682,172.67,172.64,5.83145781]
[1748485240360,29.63767682,172.67,172.65,5.7902]
[1748485240659,29.63767682,172.67,172.64,0.04085781]
[1748485240861,29.63767682,172.67,172.66,5.7899]
[1748485241361,0.03767682,172.67,172.66,5.7899]
[1748485255770,7.682e-05,172.67,172.66,5.7899]
[1748485269280,7.682e-05,172.67,172.65,5.7901]
[1748485269578,3.21884149,172.65,172.64,0.04085781]
[1748485269984,3.21884149,172.65,172.64,5.83135781]
[1748485275284,7.682e-05,172.67,172.66,5.7899]
[1748485279990,7.682e-05,172.67,172.64,0.04085781]
[1748485280189,3.21884149,172.66,172.64,0.04085781]
[1748485280387,3.21884149,172.66,172.65,5.79]
[1748485281291,3.21884149,172.66,172.64,5.83135781]
[1748485281689,3.21884149,172.66,172.65,5.7902]
[1748485281889,29.58007682,172.67,172.65,5.7902]
[1748485282395,29.58007682,172.67,172.66,5.7899]
[1748485283495,29.58007682,172.67,172.65,5.7902]
[1748485283994,29.58007682,172.67,172.64,0.04085781]
[1748485284194,29.58007682,172.67,172.65,5.7902]
[1748485284395,29.58007682,172.67,172.64,0.04085781]
[1748485284791,29.58007682,172.67,172.66,5.7899]
[1748485287599,7.682e-05,172.67,172.66,5.7899]
[1748485291903,7.682e-05,172.67,172.66,35.3699]
[1748485292195,29.58,172.76,172.75,5.7869]
[1748485292798,29.58,172.76,172.74,5.7872]
[1748485293005,29.58,172.76,172.73,0.04273912]
[1748485293198,29.62392986,172.76,172.73,0.04258106]
[1748485293905,35.41062986,172.76,172.73,0.04258106]
[1748485295609,5.7869,172.75,172.73,0.04258106]
[1748485296609,35.41052986,172.76,172.73,0.04258106]
[1748485297506,29.62392986,172.76,172.73,5.83008106]
[1748485297900,29.62392986,172.76,172.73,0.04258106]
[1748485298208,35.41052986,172.76,172.73,0.04258106]
[1748485300206,35.41052986,172.76,172.73,5.83008106]
[1748485300604,29.62392986,172.76,172.73,5.83008106]
[1748485302003,29.62392986,172.76,172.74,5.7872]
[1748485302204,29.62392986,172.76,172.73,0.04258106]
[1748485305011,29.62392986,172.76,172.74,5.7872]
[1748485305612,29.62392986,172.76,172.73,5.83008106]
[1748485307508,29.62392986,172.76,172.73,0.04258106]
[1748485309010,29.62392986,172.76,172.75,5.7869]
[1748485311815,0.04392986,172.76,172.75,5.7869]
[1748485313613,0.04392986,172.76,172.73,0.04258106]
[1748485313918,29.6,172.75,172.73,0.04258106]
[1748485314215,29.6,172.75,172.73,5.82988106]
[1748485318519,29.6,172.75,172.74,5.7872]
[1748485318721,29.6,172.75,172.73,0.04258106]
[1748485319422,29.6,172.75,172.74,5.7872]
[1748485321921,29.6,172.75,172.73,0.04258106]
[1748485322528,29.6,172.75,172.64,29.6]
[1748485323423,29.6,172.74,172.64,29.6]
[1748485323621,0.04345588,172.71,172.67,0.04030568]
[1748485323926,0.04087138,172.71,172.7,5.7886]
[1748485324527,29.6,172.75,172.74,5.7872]
[1748485327226,29.6,172.75,172.73,5.82565696]
[1748485327533,29.6,172.75,172.73,0.03815696]
[1748485328126,5.7872,172.74,172.73,0.03815696]
[1748485328324,29.6,172.75,172.73,0.03815696]
[1748485328725,5.788,172.72,172.63,5.7926]
[1748485328935,29.6,172.71,172.63,5.7926]
[1748485329431,35.3882,172.71,172.63,5.7926]
[1748485329830,0.03915121,172.69,172.65,0.0379347]
[1748485331931,0.03915121,172.69,172.68,5.7892]
[1748485335133,0.03915121,172.69,172.67,5.7895]
[1748485335739,0.03915121,172.69,172.65,0.0379347]
[1748485335933,0.03915121,172.69,172.68,5.7892]
[1748485339234,0.03915121,172.69,172.65,0.0379347]
[1748485339235,0.03915121,172.69,172.67,5.7894]
[1748485339436,0.03915121,172.69,172.65,0.0379347]
[1748485339732,0.03915121,172.69,172.66,5.7899]
[1748485340635,5.82825121,172.69,172.66,5.7899]
[1748485341335,0.03915121,172.69,172.65,0.0379347]
[1748485342135,5.7899,172.66,172.65,0.0379347]
[1748485342337,35.5099,172.66,172.65,0.0379347]
[1748485343741,29.72,172.66,172.65,0.0379347]
[1748485344641,35.5099,172.66,172.65,0.0379347]
[1748485349747,29.72,172.66,172.55,29.72]
[1748485350138,5.7911,172.63,172.59,5.7919]
[1748485350343,5.7911,172.63,172.55,29.72]
[1748485350846,5.7911,172.63,172.57,0.03663765]
[1748485350847,0.03764538,172.61,172.57,0.03663765]
[1748485354250,0.03764538,172.61,172.6,5.7919]
[1748485355751,17.4,172.77,172.57,0.03663765]
[1748485355953,5.03172515,172.74,172.58,29.72]
[1748485356160,5.03172515,172.74,172.59,29.72]
[1748485356454,5.7888,172.7,172.66,5.7898]
[1748485356646,29.72,172.69,172.66,5.7898]
[1748485356843,29.75775557,172.69,172.66,5.8292294]
[1748485361158,35.54665557,172.69,172.66,0.0394294]
[1748485365655,5.7893,172.68,172.66,0.0394294]
[1748485366958,5.7896,172.67,172.66,0.0394294]
[1748485367452,35.54685557,172.69,172.66,0.0394294]
[1748485368754,29.75775557,172.69,172.66,0.0394294]
[1748485369761,5.7895,172.68,172.66,0.0394294]
[1748485372163,35.54675557,172.69,172.66,0.0394294]
[1748485373962,35.54665557,172.69,172.66,5.8290294]
[1748485374354,0.03775557,172.69,172.66,0.0394294]
[1748485374967,0.03775557,172.69,172.68,5.7892]
[1748485376063,0.03775557,172.69,172.66,0.0394294]
[1748485376566,0.03775557,172.69,172.67,5.7896]
[1748485378461,0.03775557,172.69,172.66,0.0394294]
[1748485378856,5.7896,172.67,172.66,0.0394294]
[1748485382362,5.7893,172.68,172.66,0.0394294]
[1748485383063,5.7896,172.67,172.66,0.0394294]
[1748485384765,0.03775557,172.69,172.66,0.0394294]
[1748485385356,5.7896,172.67,172.66,0.0394294]
[1748485385970,5.7893,172.68,172.66,0.0394294]
[1748485386271,0.03775557,172.69,172.66,0.0394294]
[1748485386864,5.7896,172.67,172.66,0.0394294]
[1748485387466,0.03775557,172.69,172.6,6.0544]
[1748485387673,5.03172515,172.69,172.6,1.9647]
[1748485388064,5.7905,172.65,172.6,1.9647]
[1748485388269,29.8,172.64,172.6,1.9647]
[1748485388467,29.8,172.64,172.61,5.7914]
[1748485388661,29.83867414,172.64,172.61,5.7914]
[1748485389066,35.62937414,172.64,172.61,5.7914]
[1748485389273,29.83867414,172.64,172.61,5.7914]
[1748485389571,29.83867414,172.64,172.6,2.00451547]
[1748485390874,29.83867414,172.64,172.63,5.7909]
[1748485393177,0.03867414,172.64,172.63,5.7909]
[1748485394980,0.03867414,172.64,172.62,5.7911]
[1748485395278,0.03867414,172.64,172.6,0.03981547]
[1748485395681,29.64,172.63,172.6,0.03981547]
[1748485396784,29.64,172.63,172.6,5.83171547]
[1748485396785,35.4311,172.63,172.6,5.83171547]
[1748485397984,5.7913,172.62,172.6,0.03981547]
[1748485398587,5.7916,172.61,172.6,0.03981547]
[1748485398773,29.64,172.63,172.6,0.03981547]
[1748485399681,5.7913,172.62,172.6,0.03981547]
[1748485400484,29.64,172.63,172.6,0.03981547]
[1748485401083,5.7915,172.62,172.6,0.03981547]
[1748485401989,35.431,172.63,172.6,0.03981547]
[1748485403391,35.431,172.63,172.6,5.83171547]
[1748485404389,35.431,172.63,172.6,0.03981547]
[1748485404888,5.7913,172.62,172.6,0.03981547]
[1748485405290,35.431,172.63,172.6,0.03981547]
[1748485405990,29.64,172.63,172.6,0.03981547]
[1748485406590,0.03867414,172.64,172.6,0.03981547]
[1748485406985,0.03867414,172.64,172.63,5.7909]
[1748485411699,29.64,172.69,172.61,5.8601]
[1748485412105,29.64,172.69,172.61,35.5001]
[1748485412799,0.03776377,172.67,172.61,35.5001]
[1748485414802,0.03776377,172.67,172.66,5.7899]
[1748485417908,0.03776377,172.67,172.65,5.8280313]
[1748485419911,5.82736377,172.67,172.65,0.0379313]
[1748485421308,5.7899,172.66,172.65,0.0379313]
[1748485435016,36.0699,172.66,172.65,0.0379313]
[1748485435516,30.28,172.66,172.65,0.0379313]
[1748485437518,36.0699,172.66,172.65,0.0379313]
[1748485440005,36.0699,172.66,172.57,32.3334]
[1748485440006,5.7913,172.62,172.57,32.3334]
[1748485440714,5.7911,172.63,172.6,5.7919]
[1748485441013,5.83087478,172.63,172.6,5.82976446]
[1748485441910,0.03977478,172.63,172.61,5.7916]
[1748485442213,0.03977478,172.63,172.6,0.03786446]
[1748485444821,5.7915,172.62,172.6,0.03786446]
[1748485445017,0.03977478,172.63,172.6,0.03786446]
[1748485446323,0.03977478,172.63,172.6,2.06296446]
[1748485447018,0.03977478,172.63,172.62,5.7912]
[1748485454728,7.478e-05,172.63,172.62,5.7912]
[1748485454931,30.28,172.69,172.6,2.06296446]
[1748485455729,30.28,172.69,172.66,5.7898]
[1748485455730,36.0689,172.69,172.66,5.7898]
[1748485455927,36.0689,172.69,172.66,5.82787281]
[1748485456229,36.11036708,172.69,172.66,5.82787281]
[1748485458029,0.04146708,172.69,172.66,0.03807281]
[1748485459934,0.04146708,172.69,172.68,5.7892]
[1748485463134,6.708e-05,172.69,172.68,5.7892]
[1748485465134,6.708e-05,172.69,172.67,5.7895]
[1748485465337,6.708e-05,172.69,172.66,0.03807281]
[1748485466939,6.708e-05,172.69,172.66,5.82797281]
[1748485468437,5.78906708,172.69,172.66,5.82797281]
[1748485468636,6.708e-05,172.69,172.66,0.03807281]
[1748485469034,5.78926708,172.69,172.66,0.03807281]
[1748485469428,5.7893,172.68,172.66,0.03807281]
[1748485469633,6.708e-05,172.69,172.66,0.03807281]
[1748485469837,6.708e-05,172.69,172.66,5.82797281]
[1748485470441,6.708e-05,172.69,172.67,5.7896]
[1748485477643,6.708e-05,172.69,172.68,5.7892]
[1748485486249,6.708e-05,172.69,172.67,5.7894]
[1748485486451,6.708e-05,172.69,172.66,0.03807281]
[1748485488044,6.708e-05,172.69,172.68,5.7892]
[1748485488652,6.708e-05,172.69,172.66,0.03807281]
[1748485490041,6.708e-05,172.69,172.67,5.7893]
[1748485490640,6.708e-05,172.69,172.66,5.82777281]
[1748485492045,5.78916708,172.69,172.66,5.82777281]
[1748485492952,6.708e-05,172.69,172.66,5.82777281]
[1748485493346,6.708e-05,172.69,172.66,0.03807281]
[1748485493653,5.7896,172.67,172.66,0.03807281]
[1748485495451,5.7907,172.64,172.58,29.74]
[1748485495952,5.7904,172.65,172.62,5.7912]
[1748485496547,5.83128774,172.65,172.62,5.82911987]
[1748485497355,5.83128774,172.65,172.62,0.03791987]
[1748485497753,5.83128774,172.65,172.62,5.82911987]
[1748485497954,0.04088774,172.65,172.62,0.03791987]
[1748485501357,0.04088774,172.65,172.64,5.7906]
[1748485501859,0.04088774,172.65,172.62,0.03791987]
[1748485502954,0.04088774,172.65,172.63,5.7908]
[1748485503360,0.04088774,172.65,172.62,0.03791987]
[1748485503561,5.7909,172.64,172.62,0.03791987]
[1748485504862,0.04088774,172.65,172.62,0.03791987]
[1748485505361,0.04088774,172.65,172.62,5.82891987]
[1748485505550,5.83118774,172.65,172.62,5.82891987]
[1748485505753,0.04088774,172.65,172.63,5.7908]
[1748485506960,0.04088774,172.65,172.64,5.7906]
[1748485520576,8.774e-05,172.65,172.64,5.7906]
[1748485533689,29.68,172.75,172.64,5.03203755]
[1748485534191,31.6585,172.78,172.72,5.7878]
[1748485534393,31.6585,172.78,172.68,29.68]
[1748485534593,0.04047926,172.74,172.7,0.03705676]
[1748485536796,0.04047926,172.74,172.73,5.7876]
[1748485537203,0.04047926,172.74,172.72,5.7878]
[1748485541394,0.04047926,172.74,172.71,5.7882]
[1748485542091,0.04047926,172.74,172.7,5.82555676]
[1748485542489,29.72047926,172.74,172.7,5.82555676]
[1748485543599,5.7876,172.73,172.7,5.82555676]
[1748485543794,29.72047926,172.74,172.7,0.03705676]
[1748485544591,29.72047926,172.74,172.73,5.7876]
[1748485546901,29.72047926,172.74,172.72,5.7878]
[1748485548609,29.72047926,172.74,172.7,0.03705676]
[1748485549308,1.9499,172.73,172.67,5.7893]
[1748485549805,1.9487,172.72,172.67,5.7893]
[1748485550397,1.9487,172.72,172.68,0.03796316]
[1748485550708,1.98715328,172.72,172.68,0.03796316]
[1748485550902,5.7893,172.68,172.64,5.7903]
[1748485551107,5.7893,172.68,172.6,29.92]
[1748485551809,0.043642,172.66,172.62,0.04350388]
[1748485552004,17.38,172.81,172.65,5.03203755]
[1748485552213,1.9171,172.85,172.66,35.08]
[1748485552406,1.9171,172.85,172.66,568.1288]
[1748485552804,1.9171,172.85,172.67,41.64]
[1748485552805,5.02044371,172.85,172.67,41.64]
[1748485553112,0.039978,172.78,172.74,0.03891335]
[1748485553303,1.9158,172.84,172.76,5.7864]
[1748485553509,1.9158,172.84,172.67,41.64]
[1748485553808,0.04170634,172.77,172.75,5.7866]
[1748485553996,0.04414129,172.78,172.74,0.0439303]
[1748485556509,0.04414129,172.78,172.74,5.8311303]
[1748485557907,0.04414129,172.78,172.75,5.7868]
[1748485558425,46.78,172.99,172.74,46.8239303]
[1748485558622,1.9863,172.89,172.75,5.8979]
[1748485559111,1.9863,172.89,172.76,5.02044371]
[1748485559417,0.04248127,172.84,172.81,0.04450318]
[1748485560307,0.04248127,172.84,172.83,5.7839]
[1748485560518,8.127e-05,172.84,172.83,5.7839]
[1748485561513,8.127e-05,172.84,172.81,0.04450318]
[1748485562215,8.127e-05,172.84,172.83,5.7842]
[1748485567017,50.04,172.97,172.82,7.00204371]
[1748485567214,5.7802,172.95,172.83,3.9345]
[1748485567421,50.04,172.97,172.83,3.9345]
[1748485567610,50.04,172.97,172.88,5.7823]
[1748485568118,0.04272804,172.94,172.91,0.04137411]
[1748485574017,2.804e-05,172.94,172.91,0.04137411]
[1748485574214,2.804e-05,172.94,172.93,5.7809]
[1748485574416,2.804e-05,172.94,172.93,11.5609]
[1748485575026,1.9827,173.1,172.93,5.78]
[1748485575223,1.9827,173.1,172.97,5.02044371]
[1748485575425,2.0097,173.16,172.98,5.02044371]
[1748485575626,2.0614,173.15,172.97,71.78]
[1748485576025,0.04402163,173.08,173.04,0.04101254]
[1748485576218,3.9924,173.16,173.04,0.04128181]
[1748485576419,0.043586,173.12,173.08,0.04421268]
[1748485576625,0.04342497,173.12,173.08,0.04421268]
[1748485580630,0.04342497,173.12,173.08,5.82001268]
[1748485580831,0.04342497,173.12,173.08,0.04421268]
[1748485581235,499.3,173.35,173.08,5.82421268]
[1748485581430,2.0403,173.34,173.15,5.02044371]
[1748485581637,2.0403,173.34,173.16,4.0259]
[1748485582324,2.0403,173.34,173.24,5.7703]
[1748485582531,0.04326763,173.27,173.23,0.04311288]
[1748485582724,2.0403,173.34,173.16,4.0259]
[1748485583034,0.03877262,173.27,173.23,0.03740147]
[1748485583926,0.03877262,173.27,173.23,0.04253703]
[1748485585328,5.80837262,173.27,173.23,0.04253703]
[1748485585530,5.80837262,173.27,173.1,2.0]
[1748485585729,3.96,173.29,173.1,5.9821]
[1748485586635,0.03953543,173.21,173.18,0.03995855]
[1748485586932,0.04003855,173.21,173.18,0.03749514]
[1748485589230,0.04003855,173.21,173.1,5.9821]
[1748485589429,7.99827796,173.24,173.1,5.9821]
[1748485589833,3.96,173.29,173.1,5.9821]
[1748485590031,7.99827796,173.25,173.1,5.9821]
[1748485590231,0.03967308,173.19,173.16,0.03775647]
[1748485590727,5.7726,173.18,173.16,0.03775647]
[1748485590932,0.03967308,173.19,173.16,0.03775647]
[1748485591322,0.03967308,173.19,173.01,498.88]
[1748485591522,3.9355,173.19,173.02,6.0636]
[1748485591930,5.7728,173.18,173.02,6.0636]
[1748485592137,3.9355,173.19,173.1,5.775]
[1748485592334,0.04366023,173.16,173.13,0.04261319]
[1748485596639,0.04366023,173.16,173.15,5.7735]
[1748485597043,0.04366023,173.16,173.13,0.04261319]
[1748485597838,0.04366023,173.16,173.13,5.81651319]
[1748485598837,0.04366023,173.16,173.13,0.04261319]
[1748485599340,0.04366023,173.16,173.15,5.7735]
[1748485599539,0.04366023,173.16,173.13,0.04261319]
[1748485599736,0.04366023,173.16,173.13,5.81651319]
[1748485600134,0.04366023,173.16,173.13,0.04261319]
[1748485603037,5.81696023,173.16,173.13,0.04261319]
[1748485603638,0.04366023,173.16,173.13,0.04261319]
[1748485604240,0.04366023,173.16,173.13,5.81671319]
[1748485604845,0.04366023,173.16,173.13,0.04261319]
[1748485606361,5.7739,173.14,173.13,0.04261319]
[1748485606553,0.04366023,173.16,173.08,5.7758]
[1748485606858,5.7742,173.13,173.02,6.0636]
[1748485607158,7.99827796,173.19,173.02,6.0636]
[1748485607359,498.88,173.21,173.05,5.7765]
[1748485607554,498.88,173.21,173.02,6.0636]
[1748485607555,0.03638909,173.15,173.11,0.03764836]
[1748485607955,5.7745,173.12,173.11,0.03764836]
[1748485608652,5.7745,173.12,173.02,6.0636]
[1748485608855,1.9256,173.15,173.02,6.0636]
[1748485609456,5.7746,173.12,173.02,6.0636]
[1748485609656,1.9256,173.15,173.05,0.03884618]
[1748485609861,5.81367377,173.09,173.05,0.03884618]
[1748485610360,0.03807377,173.09,173.06,5.7762]
[1748485611058,0.03807377,173.09,173.05,0.03884618]
[1748485611059,0.03807377,173.09,173.05,5.81564618]
[1748485611456,0.03807377,173.09,173.05,0.03884618]
[1748485613055,0.03807377,173.09,173.06,5.7765]
[1748485613254,0.03807377,173.09,173.05,0.03884618]
[1748485613661,0.03807377,173.09,173.07,5.7761]
[1748485614156,0.03807377,173.09,173.08,5.7759]
[1748485614654,0.03807377,173.09,173.07,5.7762]
[1748485615465,0.03807377,173.09,173.08,5.7759]
[1748485619871,5.9357,173.2,173.02,6.0636]
[1748485620259,0.04406058,173.13,173.09,0.04128803]
[1748485620459,0.04406058,173.13,173.12,5.7744]
[1748485621664,504.6516,173.21,173.17,5.7727]
[1748485621866,498.88,173.21,173.1,5.92]
[1748485622167,5.7709,173.23,173.1,5.92]
[1748485622566,7.99827796,173.28,173.1,5.92]
[1748485622764,0.04320106,173.21,173.17,0.04195426]
[1748485622960,0.04320106,173.21,173.17,0.0414946]
[1748485623865,1.8861,173.29,173.17,0.0414946]
[1748485624065,3.9149,173.35,173.14,7.99827796]
[1748485624369,5.7679,173.33,173.27,5.7695]
[1748485624770,5.9428,173.35,173.15,498.9]
[1748485624972,0.04389181,173.27,173.23,0.03835136]
[1748485625165,0.04389181,173.27,173.23,0.03773308]
[1748485625166,0.03671023,173.27,173.23,0.03773308]
[1748485625371,0.03671023,173.27,173.26,5.7699]
[1748485626070,0.03671023,173.27,173.24,2.01]
[1748485626671,0.03671023,173.27,173.23,0.03773308]
[1748485628975,0.03671023,173.27,173.16,3.8614]
[1748485629176,3.9325,173.27,173.16,3.8614]
[1748485629977,0.04437171,173.23,173.2,0.04051272]
[1748485630275,5.81557171,173.23,173.2,0.04051272]
[1748485630471,0.04437171,173.23,173.2,0.04051272]
[1748485630876,5.81557171,173.23,173.2,0.04051272]
[1748485631274,0.04437171,173.23,173.2,0.04051272]
[1748485634172,2.0279,173.35,173.2,5.82051272]
[1748485634375,3.9138,173.44,173.21,1.9464]
[1748485634670,5.766,173.38,173.21,1.9464]
[1748485635073,0.03764022,173.31,173.28,0.04025009]
[1748485635278,0.04343308,173.31,173.3,5.7684]
[1748485635672,7.99827796,173.43,173.3,5.7684]
[1748485636573,0.03753827,173.38,173.35,0.03754318]
[1748485643870,0.03753827,173.38,173.35,5.80444318]
[1748485644179,0.03753827,173.38,173.35,0.03754318]
[1748485645578,5.80343827,173.38,173.35,0.03754318]
[1748485645785,0.03753827,173.38,173.35,0.03754318]
[1748485647877,0.03753827,173.38,173.21,1.9179]
[1748485648079,7.99827796,173.35,173.22,3.8859]
[1748485648380,7.99827796,173.35,173.21,1.9179]
[1748485648381,3.9923,173.34,173.21,1.9179]
[1748485648583,3.9923,173.34,173.21,7.6893]
[1748485648783,3.9923,173.34,173.21,1.9179]
[1748485648983,0.04250205,173.29,173.26,0.04420398]
[1748485651885,0.04250205,173.29,173.27,5.7695]
[1748485652888,0.04250205,173.29,173.28,5.7692]
[1748485653590,0.04250205,173.29,173.26,0.04420398]
[1748485654484,0.04250205,173.29,173.27,5.7695]
[1748485655385,0.04250205,173.29,173.26,0.04420398]
[1748485656689,0.04250205,173.29,173.19,3.8859]
[1748485657194,5.7699,173.27,173.2,5.7718]
[1748485657390,5.7699,173.27,173.19,3.8859]
[1748485657592,7.99827796,173.32,173.21,5.7715]
[1748485657783,5.7696,173.27,173.25,0.04322979]
[1748485657990,0.03937723,173.28,173.25,0.04322979]
[1748485659088,5.7696,173.27,173.25,0.04322979]
[1748485659385,0.03937723,173.28,173.25,0.04322979]
[1748485659587,5.80877723,173.28,173.25,0.04322979]
[1748485659788,0.03937723,173.28,173.25,0.04322979]
[1748485660392,5.7696,173.27,173.25,0.04322979]
[1748485660591,0.03937723,173.28,173.19,3.8859]
[1748485661684,0.03937723,173.28,173.22,0.03792733]
[1748485662094,0.03937723,173.28,173.23,5.7708]
[1748485662293,0.03937723,173.28,173.22,0.03792733]
[1748485662683,0.03937723,173.28,173.22,5.80902733]
[1748485663086,0.03937723,173.28,173.22,0.03792733]
[1748485663885,5.7699,173.26,173.22,0.03792733]
[1748485664296,0.03937723,173.28,173.22,0.03792733]
[1748485666094,5.7699,173.26,173.22,0.03792733]
[1748485666295,0.03937723,173.28,173.22,0.03792733]
[1748485667189,5.7705,173.25,173.22,0.03792733]
[1748485667389,0.03937723,173.28,173.22,0.03792733]
[1748485667694,5.7708,173.24,173.22,0.03792733]
[1748485668197,0.03937723,173.28,173.22,0.03792733]
[1748485671699,5.7701,173.26,173.22,0.03792733]
[1748485672302,5.7705,173.25,173.22,0.03792733]
[1748485672502,0.03937723,173.28,173.22,0.03792733]
[1748485673501,5.7704,173.25,173.22,0.03792733]
[1748485674305,0.03937723,173.28,173.22,0.03792733]
[1748485675399,5.7705,173.25,173.22,0.03792733]
[1748485676193,0.03937723,173.28,173.22,0.03792733]
[1748485676709,5.7707,173.24,173.22,0.03792733]
[1748485677098,0.03937723,173.28,173.15,1.9851]